Cogmind - Beta 16 @@@ ROGUE MODE // 2025.11.28 @ 23:36:12 Player: C0-2MO Result: Destroyed by S-27 Virus with Autogun Performance ------------- Evolutions (5) 2500 Regions Visited (13) 2600 Robots Destroyed (95) 475 Value Destroyed (3209) 3209 Prototype IDs (44) 880 Alien Tech Used (0) 0 Bonus (4117) 4117 TOTAL SCORE: 13781 Bonus ------- High Alert Combat Kills 271 Follower Combat Kills 746 Awakened Behemoth Slayer 1000 Registered with UFD 300 Met Optimus in HQ 500 Met Imprinter 300 Destroyed Z-Imprinter 1000 Cogmind --------- Core Integrity 0/1000 Matter 285/300 Energy 80/100 System Corruption 1% Temperature Cool (0) Movement Core (150) Ox2 Location -5/Factory Parts ------- > --- POWER (1) -------- (None) > --- PROPULSION (6) --- (None) > --- UTILITY (8) ------ Experimental Signal Interpreter Advanced Melee Analysis Suite Stasis Canceller Hacking Suite > --- WEAPON (2) ------- Companion Sword > --- INVENTORY (5) ---- Advanced Trap Extractor (4/8 Blade) Dimensional Node Initializer CPS Tube (1) CR-A16's Behemoth Slayer Peak State ------------ > --- POWER ------------ Zionite Light DM Reactor > --- PROPULSION ------- VTOL Module Cesium-ion Thruster Cesium-ion Thruster Xenon Bombardment Thruster Nuclear Pulse Thruster Cooled Nuclear Pulse Thruster > --- UTILITY ---------- Experimental Heat Sink Large Storage Unit Experimental Signal Interpreter Advanced Melee Analysis Suite Advanced Melee Analysis Suite Precision Energy Filter Improved Hacking Suite System Shield > --- WEAPON ----------- Companion Sword > --- INVENTORY -------- Improved Fusion Compressor Zionite Light DM Reactor VTOL Module Zionite Biocell Stasis Canceller Improved Transmission Jammer Improved Propulsion Shielding Authchip [Processor] A0-MCA's Component Scanner Trap Extractor Hacking Drone Bay Dimensional Node Initializer CPS Tube CR-A16's Behemoth Slayer GAL Module [Rating: 88] Favorites ----------- Power Subdweller Power Source Engine Subdweller Power Source Power Core Light Fission Core Reactor Zionite Light DM Reactor Propulsion VTOL Module Treads Light Treads Leg Zionite Composite Leg I Wheel Compact Wheel Hover Unit Zionite Glidesys I Flight Unit VTOL Module Utility Advanced Melee Analysis Suite Device Advanced Heat Sink Storage Medium Storage Unit Processor Advanced Melee Analysis Suite Hackware Authchip [Device] Protection Improved Propulsion Shielding Weapon Companion Sword Energy Gun Zionite Laser-S Energy Cannon Powered Cannon Ballistic Gun Assault Rifle Special Weapon CPS Tube Slashing Weapon Companion Sword Piercing Weapon CR-A16's Pointy Stick Special Melee Weapon Improved Datajack Build | -11 -10 -10 -8 -8 -6 -6 -6 -6 -6 -6 -6 -5 -5 ------- Run | Yrd Mat Sub Rec Scr Fac Was Fac Low Low Zio Dee Pro Fac Slots Evolved 10 | . . . . . 8 . . . . . . . 2 Power . | . . . . . . . . . . . . . . Propulsion 4 | . . . . . 4 . . . . . . . . Utility 6 | . . . . . 4 . . . . . . . 2 Weapon . | . . . . . . . . . . . . . . Parts Attached 131 | 6 8 16 1 2 32 3 6 2 1 2 16 7 29 Power 22 | . 1 8 . . 3 . 1 1 1 . 2 . 5 Engine 12 | . 1 8 . . . . . . . . . . 3 Core 7 | . . . . . 3 . 1 1 1 . . . 1 Reactor 3 | . . . . . . . . . . . 2 . 1 Propulsion 35 | 2 2 2 . . 14 1 2 . . . 4 4 4 Treads 2 | 1 1 . . . . . . . . . . . . Leg 1 | . . . . . . . . . . . 1 . . Wheel 4 | 1 1 2 . . . . . . . . . . . Hover 1 | . . . . . . . . . . . 1 . . Flight 27 | . . . . . 14 1 2 . . . 2 4 4 Utility 59 | 2 2 4 1 1 13 2 3 1 . 2 7 2 19 Device 25 | 1 1 2 . . 4 1 1 . . 1 2 . 12 Storage 8 | 1 1 . 1 . 1 . 1 . . . 1 . 2 Processor 5 | . . . . . 3 . . . . 1 . 1 . Hackware 10 | . . . . 1 3 . 1 . . . 1 1 3 Protection 11 | . . 2 . . 2 1 . 1 . . 3 . 2 Artifact . | . . . . . . . . . . . . . . Weapon 15 | 2 3 2 . 1 2 . . . . . 3 1 1 Energy Gun 2 | . . . . . . . . . . . 2 . . Energy Cannon 1 | . . 1 . . . . . . . . . . . Ballistic Gun 5 | 2 3 . . . . . . . . . . . . Ballistic Cannon . | . . . . . . . . . . . . . . Launcher . | . . . . . . . . . . . . . . Special Weapon 2 | . . . . . 1 . . . . . 1 . . Impact Weapon . | . . . . . . . . . . . . . . Slashing Weapon 2 | . . 1 . 1 . . . . . . . . . Piercing Weapon 2 | . . . . . . . . . . . . 1 1 Special Melee Weapon 1 | . . . . . 1 . . . . . . . . Unidentified Prototypes 21 | . . 1 . 1 . 1 1 1 . 1 10 . 5 Corrupted Parts 1 | . . . . 1 . . . . . . . . . System Corruption 4 | . . . . 4 . . . . . . . . . Parts Lost 38 | . 3 3 . . 7 . 2 2 . . 1 3 17 Power 8 | . . 2 . . 1 . . 1 . . . . 4 Propulsion 18 | . . 1 . . 6 . 1 . . . . 1 9 Utility 10 | . 1 . . . . . 1 1 . . 1 2 4 Weapon 2 | . 2 . . . . . . . . . . . . Highest Loss Streak 10 | . 3 1 . . 4 . 2 2 . . 1 3 10 To Critical Strikes . | . . . . . . . . . . . . . . Average Backups 11 | 3 6 3 9 20 9 9 10 13 12 13 13 13 10 Power 1 | 1 1 . . 2 . 1 1 1 . 1 1 2 . Propulsion 2 | 1 3 1 2 5 . 1 . 2 2 2 1 . . Utility 5 | . . 1 4 8 4 4 5 8 8 7 8 7 6 Weapon . | . 1 . . 1 . . . . . . 1 . 1 Tool/Special . | . . . . . . . . . . . . . . Unused Backups 16 | . 1 1 . 1 7 1 1 . . . 1 1 2 Power 3 | . . . . . 3 . . . . . . . . Propulsion 1 | . . 1 . . . . . . . . . . . Utility 8 | . . . . 1 2 1 1 . . . 1 1 1 Weapon 3 | . 1 . . . 2 . . . . . . . . Tool/Special 1 | . . . . . . . . . . . . . 1 Average Slot Usage (%) 83 | . 85 73 75 86 90 93 90 92 93 93 90 90 78 Engine 10 | . 4 19 25 23 . . . . . . . . 2 Core 1 | . . . . . 5 6 6 6 6 6 . . . Wheel 12 | . 14 24 25 25 . . . . . . . . . Flight 17 | . . . . . 37 40 37 40 40 40 40 40 24 Device 6 | . 9 8 . . 8 13 12 12 13 13 9 6 8 Storage 6 | . 14 . 7 12 6 6 6 6 6 6 6 6 4 Processor 6 | . . . . . 12 13 13 13 13 13 13 19 16 Hackware 4 | . . . . 12 7 . . . . . . 3 9 Protection 3 | . . 5 4 . 2 6 5 5 6 5 5 . 2 Energy Cannon 5 | . . 10 12 9 . . . . . . . . . Ballistic Gun 1 | . 28 1 . . . . . . . . . . . Slashing Weapon 3 | . . 1 . 2 6 6 6 6 6 6 6 6 5 Peak Build Rating 88 | 6 7 25 25 33 56 61 68 70 67 72 79 81 88 Average Rating 42 | 4 5 21 24 28 51 54 62 68 66 66 71 73 68 On Entrance 44 | . 6 7 24 25 23 54 61 68 67 66 67 77 73 Avg Prop Armor Cover (%) 5 | 18 13 13 3 5 . . 4 . . . . . 5 Naked Turns . | . . . . . . . . . . . . . . Heaviest Build 97 | 8 18 37 97 97 87 25 34 35 35 35 38 38 36 Greatest Support 38 | 16 10 36 36 16 31 33 36 36 36 36 38 38 37 Greatest Overweight (x) 6 | . 1 2 6 6 5 . . . . . 1 1 1 Average Overweight (x) . | . . . 4 5 . . . . . . . . . Largest Inventory Capacity 25 | 8 10 10 25 25 25 10 15 15 15 15 15 15 15 Average Capacity 13 | 7 9 5 16 25 10 10 11 15 15 15 15 15 11 Most Carried 25 | 6 8 5 16 25 25 10 13 15 14 15 15 15 15 Average Carried 11 | 3 6 4 10 20 9 9 10 14 13 14 14 14 11 Final Capacity 25 | 8 10 5 25 25 10 10 15 15 15 15 15 15 5 Final Carried 25 | 6 5 4 16 25 10 10 13 13 14 15 15 15 4 Class Distribution -------------------- 37% | Scavenger-Sprinter 26% | Mutant 20% | Commander-Mutant 4% | Subdweller-Mutant 4% | Hacker-Sprinter 3% | Scavenger-Mutant 3% | Sprinter Dominant Class ---------------- Mutant | -10/Materials Mutant | -10/Subcaves Subdweller-Mutant | -8/Recycling Commander-Mutant | -8/Scraptown Scavenger-Sprinter | -6/Factory Scavenger-Sprinter | -6/Waste Scavenger-Sprinter | -6/Factory Scavenger-Sprinter | -6/Lower Caves Scavenger-Sprinter | -6/Lower Caves Scavenger-Sprinter | -6/Zion Scavenger-Sprinter | -6/Deep Caves Scavenger-Sprinter | -5/Proximity Caves Scavenger-Sprinter | -5/Factory Resources | -11 -10 -10 -8 -8 -6 -6 -6 -6 -6 -6 -6 -5 -5 ----------- Run | Yrd Mat Sub Rec Scr Fac Was Fac Low Low Zio Dee Pro Fac Matter Collected 2345 | 290 297 266 20 10 441 4 175 68 25 40 239 92 378 Remotely . | . . . . . . . . . . . . . . Salvage Created 4552 | 160 397 308 290 . 518 . 736 67 . . 337 180 1559 Parts 223 | 12 23 15 9 . 31 . 31 3 . . 25 10 64 Haulers Intercepted 9 | . 1 . . . 1 . 3 . . . . . 4 Recyclers Shooed 5 | . 1 . 3 . 1 . . . . . . . . Parts Field Recycled . | . . . . . . . . . . . . . . Retrieved Matter . | . . . . . . . . . . . . . . Parts Self-Destructed 44 | . . 11 . . . . . 3 . . . 30 . Prevented . | . . . . . . . . . . . . . . Parts Restored . | . . . . . . . . . . . . . . Kills | -11 -10 -10 -8 -8 -6 -6 -6 -6 -6 -6 -6 -5 -5 ------- Run | Yrd Mat Sub Rec Scr Fac Was Fac Low Low Zio Dee Pro Fac Combat Hostiles Destroyed 58 | . 7 7 3 . 9 . 5 1 . . 5 4 17 Melee 39 | . . . . . 9 . 5 1 . . 5 3 16 Guns 7 | . 7 . . . . . . . . . . . . Cannons 7 | . . 5 2 . . . . . . . . . . Classes Destroyed 17 | 2 4 3 2 . . . 2 . . . 2 1 1 Builder 2 | . . . . . . . . . . . . . 2 Tunneler 3 | 3 . . . . . . . . . . . . . Hauler 9 | . 1 . . . 1 . 3 . . . . . 4 Recycler 5 | 1 . . 2 . . . . . . . . . 2 Mechanic 1 | . . . . . . . 1 . . . . . . Operator 5 | . 1 . . . 1 . 1 . . . . . 2 Turret 1 | . . 1 . . . . . . . . . . . Watcher 12 | . 1 . . . 4 . 4 . . . . . 3 Swarmer 16 | . . 1 . . 7 . . . . . . 2 6 Grunt 13 | . 7 . . . . . . . . . . . 6 Sentry 7 | . . . 2 . . . 2 . . . . . 3 Hunter 2 | . . . . . . . 1 1 . . . . . Programmer 7 | . . . 1 . 2 . 2 . . . . 1 1 Behemoth 2 | . . . . . . . . . . . . 1 1 Subdweller 6 | . . 6 . . . . . . . . . . . Z-Technician 5 | . . . . . . . . . . . 5 . . Z-Light 4 | . . . . . . . . . . . 4 . . Assembled 1 | . . . . . . . . . . . 1 . . Best Kill Streak 7 | 3 6 1 2 . 7 . 3 1 . . 5 2 6 Combat Bots Only 7 | . 6 1 2 . 7 . 2 1 . . 2 2 5 Max Kills in Single Turn 1 | 1 1 1 1 . 1 . 1 1 . . 1 1 1 Gunslinging . | . . . . . . . . . . . . . . Exploded . | . . . . . . . . . . . . . . Melee 1 | . . . . . 1 . 1 1 . . 1 1 1 Uniques/NPCs Destroyed 1 | . . . . . . . . . . . 1 . . Z-Imprinter (-6/Deep Caves) Combat | -11 -10 -10 -8 -8 -6 -6 -6 -6 -6 -6 -6 -5 -5 -------- Run | Yrd Mat Sub Rec Scr Fac Was Fac Low Low Zio Dee Pro Fac Hostile Shots Fired 506 | . 54 37 20 . 93 . 99 12 . . 6 22 163 Missed 199 | . 14 7 8 . 44 . 56 1 . . 1 11 57 Hits 307 | . 40 30 12 . 49 . 43 11 . . 5 11 106 Melee 1 | . . . . . . . . 1 . . . . . Projectile 306 | . 40 30 12 . 49 . 43 10 . . 5 11 106 AOE 5 | . . . . . . . . . . . . . 5 Critical Strikes 10 | . 1 . 1 . 1 . 1 . . . . . 6 Actively Blocked 3 | . . . . . 1 . 1 . . . . . 1 Damage Taken 5817 | . 500 616 175 . 871 . 453 216 . . 336 260 2390 Core 1751 | . 82 68 12 . 295 . 138 . . . 128 17 1011 Absorbed by Shields . | . . . . . . . . . . . . . . Redirected to Shielding 610 | . . . . . 56 . 77 109 . . 64 . 304 Regen/Repaired (Parts) 354 | . . . . . 150 . 204 . . . . . . Core Remaining (%) 55 | 100 . . . 35 . . . . . . . 32 . Volleys Fired 154 | 15 49 68 21 . . . . . . . 1 . . Largest 2 | 2 2 1 1 . . . . . . . 1 . . Hottest 40 | 40 40 40 40 . . . . . . . . . . Shots Fired 218 | 30 98 68 21 . . . . . . . 1 . . Gun 128 | 30 98 . . . . . . . . . . . . Cannon 89 | . . 68 21 . . . . . . . . . . Launcher . | . . . . . . . . . . . . . . Special 1 | . . . . . . . . . . . 1 . . Kinetic 128 | 30 98 . . . . . . . . . . . . Thermal 89 | . . 68 21 . . . . . . . . . . Explosive . | . . . . . . . . . . . . . . Electromagnetic . | . . . . . . . . . . . . . . Robot Hit Streak 15 | 15 6 10 8 . . . . . . . 2 . . Robot Miss Streak 5 | 2 5 2 1 . . . . . . . . . . Penetration Max . | . . . . . . . . . . . . . . Secondary Targets 3 | . 3 . . . . . . . . . . . . Max Gunslinging Chain 1 | . 1 . . . . . . . . . . . . Shots Hit Robots 281 | 23 50 18 13 . 26 . 37 5 . . 23 10 76 Core Hits 106 | 9 19 6 3 . 14 . 13 1 . . 7 3 31 Critical Kills 3 | . . 2 1 . . . . . . . . . . Critical Parts Destroyed . | . . . . . . . . . . . . . . Critical Strikes 7 | . . 2 1 . . . 2 . . . . . 2 Meltdown 3 | . . 2 1 . . . . . . . . . . Melee Attacks 281 | . . 4 . . 59 . 67 6 1 1 30 13 100 Impact . | . . . . . . . . . . . . . . Slashing 275 | . . 4 . . 58 . 67 6 1 1 30 9 99 Piercing 5 | . . . . . . . . . . . . 4 1 Sneak Attacks 34 | . . . . . 4 . 7 1 . . 7 3 12 Combat Hostiles 8 | . . . . . . . 2 1 . . 1 3 1 Follow-up Attacks 2 | . . . . . . . . . . . 1 1 . Damage Inflicted 12449 | 180 632 901 702 . 1307 . 2258 268 . . 1497 552 4152 Guns 812 | 180 632 . . . . . . . . . . . . Cannons 1603 | . . 901 702 . . . . . . . . . . Explosions . | . . . . . . . . . . . . . . Melee 10034 | . . . . . 1307 . 2258 268 . . 1497 552 4152 Ramming . | . . . . . . . . . . . . . . Kinetic 812 | 180 632 . . . . . . . . . . . . Thermal 1603 | . . 901 702 . . . . . . . . . . Explosive . | . . . . . . . . . . . . . . Electromagnetic . | . . . . . . . . . . . . . . Impact . | . . . . . . . . . . . . . . Slashing 9901 | . . . . . 1307 . 2258 268 . . 1497 419 4152 Piercing 133 | . . . . . . . . . . . . 133 . Highest Corruption 4 | . . . . 4 1 1 4 4 4 4 1 1 1 Average Corruption 1 | . . . . 4 1 1 1 4 4 4 1 1 1 Corruption Purged . | . . . . . . . . . . . . . . Corruption Blocked . | . . . . . . . . . . . . . . Effects 29 | . . . . . 4 . 9 5 2 . 5 3 1 Message Errors 6 | . . . . . 2 . . 2 . . 2 . . Matter Fused 5 | . . . . . . . 1 1 . . 2 . 1 Heat Flow Errors 5 | . . . . . . . 3 . 1 . 1 . . Energy Discharges 5 | . . . . . 1 . 3 . . . . 1 . Data Loss (minor) 4 | . . . . . 1 . 1 1 1 . . . . Data Loss (major) 1 | . . . . . . . . . . . . 1 . Alerts 3 | . . . . . . . 1 1 . . . 1 . Overload Shots . | . . . . . . . . . . . . . . Overflow Damage 1424 | . . 7 151 . 113 . 272 . . . 395 83 403 Projectiles 158 | . . 7 151 . . . . . . . . . . Explosions . | . . . . . . . . . . . . . . Melee 1266 | . . . . . 113 . 272 . . . 395 83 403 Knockbacks . | . . . . . . . . . . . . . . Impact . | . . . . . . . . . . . . . . Kinetic . | . . . . . . . . . . . . . . Secondary . | . . . . . . . . . . . . . . Self-Inflicted Damage . | . . . . . . . . . . . . . . Shots . | . . . . . . . . . . . . . . Rammed . | . . . . . . . . . . . . . . Targets Rammed . | . . . . . . . . . . . . . . Kicked . | . . . . . . . . . . . . . . Crushed . | . . . . . . . . . . . . . . Highest Temperature 243 | . 15 22 137 . . . 243 . 114 4 111 . 27 Average Temperature 49 | . 6 7 48 . . . 93 . 39 4 60 . 10 Received Heat Transfer 1185 | . 300 90 36 . 42 . 114 36 . . 66 36 465 Siege Activations . | . . . . . . . . . . . . . . Martial Activations . | . . . . . . . . . . . . . . Shielding Activations . | . . . . . . . . . . . . . . Robots Disrupted 1 | . . . . . . . . . . . . . 1 Combat Hostiles . | . . . . . . . . . . . . . . Robots Corrupted . | . . . . . . . . . . . . . . Combat Hostiles . | . . . . . . . . . . . . . . Parts Fried 1 | . . . . . . . . . . . 1 . . Impact Corruptions . | . . . . . . . . . . . . . . Robots Melted 3 | . . 2 1 . . . . . . . . . . Combat Hostiles 3 | . . 2 1 . . . . . . . . . . Parts Melted 4 | . . 2 1 . . . . . . . 1 . . Heat Transferred . | . . . . . . . . . . . . . . Parts Sabotaged . | . . . . . . . . . . . . . . Parts Stolen . | . . . . . . . . . . . . . . Parts Stripped . | . . . . . . . . . . . . . . Power Chain Reactions . | . . . . . . . . . . . . . . Alert | -11 -10 -10 -8 -8 -6 -6 -6 -6 -6 -6 -6 -5 -5 ------- Run | Yrd Mat Sub Rec Scr Fac Was Fac Low Low Zio Dee Pro Fac Maximum Alert Level 3 | . . . . . 2 . 1 . . . . . 3 Low Security (%) 67 | 100 100 . 100 . 48 100 98 . . . . . . Level 1 17 | . . . . . 32 . 1 . . . . . 49 Level 2 10 | . . . . . 19 . . . . . . . 31 Level 3 4 | . . . . . . . . . . . . . 19 Level 4 . | . . . . . . . . . . . . . . Level 5 . | . . . . . . . . . . . . . . High Security . | . . . . . . . . . . . . . . Max Security . | . . . . . . . . . . . . . . Peak Influence 1029 | 15 97 . 71 . 467 163 254 . . . . . 1029 Initial 260 | . 3 . 1 . . 163 93 . . . . . 260 Average 181 | 2 41 . 17 . 200 148 115 . . . . . 492 Influence Increases 4178 | 20 246 114 344 . 912 . 583 60 . . . 409 1490 Destroy 0b10 Robot/C 1440 | . 140 60 160 . 220 . 100 20 . . . 220 520 Destroy 0b10 Robot/NC 215 | 20 15 . 20 . 30 . 45 . . . . 10 75 Destroy Leader 332 | . 34 . . . 70 . 64 10 . . . 40 114 Allied During Kill 230 | . . 9 20 . 2 . . . . . . 124 75 Successful Hack 240 | . 26 . 13 . 88 . 107 . . . . . 6 Select Force Hacks 170 | . 30 . 120 . . . 20 . . . . . . Disable Machine 75 | . . . . . 30 . 30 . . . . . 15 Destroy Structure 126 | . 1 . 11 . 22 . 22 . . . . . 70 Advance Influence 150 | . . . . . . . . . . . . . 150 Partial Spotted 195 | . . . . . 60 . 60 . . . . . 75 Lose Combat Pursuer 1005 | . . 45 . . 390 . 135 30 . . . 15 390 Influence Decreases 3202 | 15 238 124 347 . 445 334 462 195 53 66 . 233 690 Entered New Map 605 | . 2 7 2 . . 304 40 95 23 66 . . 66 Time Decay 2048 | 15 206 87 285 . 332 30 392 80 30 . . 187 404 Lost Part 318 | . 30 10 . . 62 . 20 20 . . . 6 170 Lost Ally 231 | . . 20 60 . 51 . 10 . . . . 40 50 Squads Dispatched 49 | . 2 . . . 19 . 13 . . . . . 15 Investigation 26 | . 1 . . . 11 . 9 . . . . . 5 Extermination 8 | . . . . . 3 . 3 . . . . . 2 Reinforcement 11 | . 1 . . . 2 . 1 . . . . . 7 Assault 1 | . . . . . . . . . . . . . 1 Garrison 3 | . . . . . 3 . . . . . . . . Intercept . | . . . . . . . . . . . . . . Searches Triggered . | . . . . . . . . . . . . . . Construction Impeded 1 | . . . . . . . . . . . . . 1 Haulers Reinforced 4 | . . . . . . . 1 . . . . . 3 Active Scanning Responses . | . . . . . . . . . . . . . . Cargo Convoy Interrupts . | . . . . . . . . . . . . . . Stealth | -11 -10 -10 -8 -8 -6 -6 -6 -6 -6 -6 -6 -5 -5 --------- Run | Yrd Mat Sub Rec Scr Fac Was Fac Low Low Zio Dee Pro Fac Distress Signals 8 | . 2 . . . 1 . . . . . . . 5 Communications Jammed . | . . . . . . . . . . . . . . Distress Signals . | . . . . . . . . . . . . . . Times Spotted 192 | . 21 13 4 . 42 . 20 7 . . 16 10 59 Peak Tracking Total 14 | . 5 3 3 . 14 . 5 4 . . 3 4 12 Tactical Retreats 30 | . 1 2 . . 11 . 4 1 . . . 1 10 ECM-based Alert Blocks 1 | . 1 . . . . . . . . . . . . Traps | -11 -10 -10 -8 -8 -6 -6 -6 -6 -6 -6 -6 -5 -5 ------- Run | Yrd Mat Sub Rec Scr Fac Was Fac Low Low Zio Dee Pro Fac Traps Triggered 7 | . . 2 . . 3 . . . . . . . 2 Indirectly . | . . . . . . . . . . . . . . Trap Hack Attempts 52 | . . . . . 52 . . . . . . . . Triggered . | . . . . . . . . . . . . . . Disarmed . | . . . . . . . . . . . . . . Reprogrammed 4 | . . . . . 4 . . . . . . . . Reused . | . . . . . . . . . . . . . . Traps Extracted 4 | . . . . . 4 . . . . . . . . Installed . | . . . . . . . . . . . . . . Triggered . | . . . . . . . . . . . . . . Most Traps Carried 4 | . . . . . 4 4 4 4 4 4 4 4 4 Machines | -11 -10 -10 -8 -8 -6 -6 -6 -6 -6 -6 -6 -5 -5 ---------- Run | Yrd Mat Sub Rec Scr Fac Was Fac Low Low Zio Dee Pro Fac Machines Disabled 8 | . . 1 . . 2 . 2 . . . 1 1 1 Max in Single Turn 1 | . . 1 . . 1 . 1 . . . . 1 1 Garrison Access 3 | . . . . . 1 . 1 . . . . . 1 Machines Repaired . | . . . . . . . . . . . . . . Machines Dismantled . | . . . . . . . . . . . . . . Machines Sabotaged . | . . . . . . . . . . . . . . Overloaded Fab Kills . | . . . . . . . . . . . . . . Hacking | -11 -10 -10 -8 -8 -6 -6 -6 -6 -6 -6 -6 -5 -5 --------- Run | Yrd Mat Sub Rec Scr Fac Was Fac Low Low Zio Dee Pro Fac Machines Accessed 85 | . 6 2 10 3 27 . 21 . 1 1 . 1 13 Terminals 39 | . 5 . 6 . 13 . 11 . . . . . 4 Fabricators 4 | . . . . . 2 . 2 . . . . . . Repair Stations 6 | . . . . . 2 . 3 . . . . . 1 Recycling Units 19 | . 1 . 4 . 6 . 3 . . . . . 5 Scanalyzers 5 | . . . . . 3 . 1 . . . . . 1 Garrison Access 4 | . . . . . 1 . 1 . . . . . 2 Total Hacks 251 | . 21 4 26 5 88 . 62 . 1 5 . 1 38 Successful 142 | . 13 4 14 5 46 . 31 . 1 5 . 1 22 Failed 109 | . 8 . 12 . 42 . 31 . . . . . 16 Catastrophic 14 | . . . . . 7 . 4 . . . . . 3 Database Lockouts . | . . . . . . . . . . . . . . Manual 155 | . 20 . 26 . 50 . 38 . . 5 . . 16 Terminals 121 | . 19 . 22 . 40 . 29 . . . . . 11 Fabricators 12 | . . . . . 6 . 6 . . . . . . Repair Stations 27 | . . . . . 12 . 13 . . . . . 2 Recycling Units 34 | . 2 . 4 . 11 . 6 . . . . . 11 Scanalyzers 33 | . . . . . 16 . 6 . . . . . 11 Garrison Access 8 | . . . . . 3 . 2 . . . . . 3 Terminal Hacks 32 | . 2 4 3 5 6 . 3 . 1 5 . 1 2 Record 8 | . . 3 . 4 . . . . . . . 1 . Part Schematic 8 | . . . 2 . 1 . . . . 5 . . . Robot Analysis 4 | . 1 . . . 1 . 2 . . . . . . Prototype ID Bank 2 | . . . . . 1 . . . . . . . 1 Open Door 2 | . . . . 1 . . . . 1 . . . . Terminal Index 5 | . 1 . 1 . 1 . 1 . . . . . 1 Scanalyzer Index 1 | . . . . . 1 . . . . . . . . Zone Layout 1 | . . . . . 1 . . . . . . . . Proto ID Catalog 1 | . . 1 . . . . . . . . . . . Fabricator Hacks 3 | . . . . . 1 . 2 . . . . . . Network Status 2 | . . . . . 1 . 1 . . . . . . Load Schematic 1 | . . . . . . . 1 . . . . . . Repair Station Hacks 16 | . . . . . 8 . 8 . . . . . . Scan Component 9 | . . . . . 4 . 5 . . . . . . Repair 7 | . . . . . 4 . 3 . . . . . . Recycling Unit Hacks 1 | . . . . . . . . . . . . . 1 Retrieve Components 1 | . . . . . . . . . . . . . 1 Scanalyzer 28 | . . . . . 12 . 5 . . . . . 11 Insert Component 9 | . . . . . 3 . 2 . . . . . 4 Analyze 11 | . . . . . 3 . 2 . . . . . 6 Retrieve Study 8 | . . . . . 6 . 1 . . . . . 1 Garrison Access Hacks 3 | . . . . . 1 . 1 . . . . . 1 Seal Access 3 | . . . . . 1 . 1 . . . . . 1 Unauthorized Hacks 59 | . 11 . 11 . 18 . 12 . . . . . 7 Terminals 38 | . 10 . 7 . 11 . 7 . . . . . 3 Assimilate 2 | . . . . . 1 . 1 . . . . . . Botnet 12 | . 4 . 2 . 4 . 1 . . . . . 1 Disrupt 1 | . . . . . 1 . . . . . . . . Operators 1 | . 1 . . . . . . . . . . . . Skim 22 | . 5 . 5 . 5 . 5 . . . . . 2 Fabricators 2 | . . . . . . . 2 . . . . . . Download 1 | . . . . . . . 1 . . . . . . Recompile 1 | . . . . . . . 1 . . . . . . Repair Stations 3 | . . . . . 1 . 2 . . . . . . Patch 3 | . . . . . 1 . 2 . . . . . . Recycling Units 16 | . 1 . 4 . 6 . 1 . . . . . 4 Tunnel 5 | . 1 . 4 . . . . . . . . . . Fedlink 10 | . . . . . 6 . 1 . . . . . 3 Scraphulk 1 | . . . . . . . . . . . . . 1 Scanalyzers . | . . . . . . . . . . . . . . Garrison Access . | . . . . . . . . . . . . . . Data Cores Recovered 2 | . . . . . 1 . . . . . . . 1 Used 1 | . . . . . 1 . . . . . . . . Hacking Detections 58 | . 6 . 6 . 20 . 17 . . . . . 9 Full Trace Events 10 | . . . 1 . 4 . 4 . . . . . 1 Feedback Events 1 | . . . . . 1 . . . . . . . . Corruption 1 | . . . . . 1 . . . . . . . . Feedback Blocked . | . . . . . . . . . . . . . . Robot Schematics Acquired 3 | . . . . . . . . . . 3 . . . Robots Built . | . . . . . . . . . . . . . . Authchips . | . . . . . . . . . . . . . . Time . | . . . . . . . . . . . . . . Total Robot Build Rating . | . . . . . . . . . . . . . . Part Schematics Acquired 31 | . . . 2 . 3 . 3 . . 20 . . 3 Parts Built . | . . . . . . . . . . . . . . Authchips . | . . . . . . . . . . . . . . Time . | . . . . . . . . . . . . . . Total Part Build Rating . | . . . . . . . . . . . . . . Part Studies Acquired 8 | . . . . . 6 . 1 . . . . . 1 Parts Repaired 7 | . . . . . 4 . 3 . . . . . . Time 328 | . . . . . 146 . 182 . . . . . . Parts Recycled . | . . . . . . . . . . . . . . Recycled Matter . | . . . . . . . . . . . . . . Retrieved Matter . | . . . . . . . . . . . . . . Retrieved Components 10 | . . . . . . . . . . . . . 10 Parts Scanalyzed 7 | . . . . . 3 . 2 . . . . . 2 Part Schematics Acquired 7 | . . . . . 2 . 2 . . . . . 3 Parts Damaged 1 | . . . . . . . 1 . . . . . . Bothacking | -11 -10 -10 -8 -8 -6 -6 -6 -6 -6 -6 -6 -5 -5 ------------ Run | Yrd Mat Sub Rec Scr Fac Was Fac Low Low Zio Dee Pro Fac Used RIF Installer . | . . . . . . . . . . . . . . Robots Hacked 1 | . . . . . 1 . . . . . . . . Non-combat 1 | . . . . . 1 . . . . . . . . Combat . | . . . . . . . . . . . . . . Robot Hacks Applied 1 | . . . . . 1 . . . . . . . . find_chute 1 | . . . . . 1 . . . . . . . . Relay Couplers Released . | . . . . . . . . . . . . . . Fabnet Peak Effective % . | . . . . . . . . . . . . . . Robots Rewired 7 | . . . 6 . . . . . . . . . 1 Allies Hacked 2 | . . . 1 . . . 1 . . . . . . Hacks Repelled . | . . . . . . . . . . . . . . Allies | -11 -10 -10 -8 -8 -6 -6 -6 -6 -6 -6 -6 -5 -5 -------- Run | Yrd Mat Sub Rec Scr Fac Was Fac Low Low Zio Dee Pro Fac Total Allies 29 | . . 5 6 . 1 . 1 . . 12 2 . 2 Largest Group 12 | . . 4 7 7 5 . 1 . . 12 12 5 3 Highest-Rated Group 451 | . . 76 108 108 83 . 26 . . 451 451 253 147 Highest-Rated Ally 123 | . . 19 27 27 27 . 26 . . 96 96 96 123 Total Orders 2 | . . . . . . . . . . . . . 2 STAY 1 | . . . . . . . . . . . . . 1 RETURN 1 | . . . . . . . . . . . . . 1 Ally Attacks 205 | . . 14 23 . 29 . . . . . 88 24 27 Total Damage 4290 | . . 204 402 . 378 . . . . . 1599 538 1169 Kills 43 | . . 3 6 . 2 . . . . . 12 9 11 Allies Corrupted 2 | . . . . . . . . . . . . . 2 Allies Melted 1 | . . . . . . . . . . . 1 . . Intel | -11 -10 -10 -8 -8 -6 -6 -6 -6 -6 -6 -6 -5 -5 ------- Run | Yrd Mat Sub Rec Scr Fac Was Fac Low Low Zio Dee Pro Fac Active Infowar (turns) 4205 | 13 378 292 . . 910 77 930 166 65 335 292 . 747 Optics 788 | . . 218 . . 570 . . . . . . . . Sensors 2433 | . . . . . 340 77 930 166 65 335 292 . 228 Terrain 24 | . . . . . . . . . . . . . 24 Structural 124 | . . . . . . . . . . . . . 124 Seismic 745 | 13 213 . . . . . . . . . . . 519 Jamming 138 | . . . . . . . . . . . . . 138 ECM 239 | . 165 74 . . . . . . . . . . . Robot Analysis Total 4 | . 1 . . . 1 . 2 . . . . . . Derelict Logs Recovered 10 | . . 2 . 3 . . . 2 . 1 . 2 . Drone Launches 1 | . . . . . . . . . . . . . 1 Drone Recoveries 1 | . . . . . . . . . . . . . 1 Exploration | -11 -10 -10 -8 -8 -6 -6 -6 -6 -6 -6 -6 -5 -5 ------------- Run | Yrd Mat Sub Rec Scr Fac Was Fac Low Low Zio Dee Pro Fac Turns Passed 10225 | 96 553 1977 974 1822 938 77 930 166 65 335 855 477 960 Spaces Moved 13785 | 54 295 1742 525 960 2229 332 2126 548 196 808 1233 892 1845 Core 42 | 22 . . . . . . . . . . . . 20 Treads . | . . . . . . . . . . . . . . Legs . | . . . . . . . . . . . . . . Wheels 3561 | 32 295 1742 525 960 7 . . . . . . . . Hover . | . . . . . . . . . . . . . . Flight 10182 | . . . . . 2222 332 2126 548 196 808 1233 892 1825 Fastest Speed 20 | 50 80 80 105 175 20 20 22 23 23 23 23 21 21 Average Speed 51 | 79 88 97 161 187 20 20 23 23 23 23 23 22 28 Slowest Speed 190 | 100 95 110 190 190 175 22 26 23 23 23 105 105 106 Overloaded Moves . | . . . . . . . . . . . . . . Propulsion Burnouts . | . . . . . . . . . . . . . . Robots Hopped 90 | . . . . . 42 . 35 4 . . . . 9 Potential Cave-ins 4 | . . 4 . . . . . . . . . . . Cave-ins Triggered . | . . . . . . . . . . . . . . Exploration Rate (%) 69 | 3 58 94 97 82 56 95 50 80 43 86 86 92 52 Regions Visited 13 Branch Regions 8 Pre-discovered Areas 21 | . 2 3 6 1 2 . 3 . . 4 . . . Known Exits Taken 8 | . . . 1 1 . . 1 1 1 1 1 1 . Unknown Exits Taken 3 | 1 1 1 . . . . . . . . . . . Scrap Searched 30 | . . 16 . 5 . . . 4 1 4 . . . Spaces Dug 86 | . . 23 4 . 21 . 22 1 . . 4 1 10 Terrain Destroyed 95 | . . 28 8 . 21 . 22 1 . . 4 1 10 Melee 59 | . . . . . 21 . 22 1 . . 4 1 10 Projectile 36 | . . 28 8 . . . . . . . . . . AOE . | . . . . . . . . . . . . . . Terrain Rammed . | . . . . . . . . . . . . . . Walls Destroyed . | . . . . . . . . . . . . . . Machines Disabled . | . . . . . . . . . . . . . . Actions | -11 -10 -10 -8 -8 -6 -6 -6 -6 -6 -6 -6 -5 -5 --------- Run | Yrd Mat Sub Rec Scr Fac Was Fac Low Low Zio Dee Pro Fac Total 16266 | 80 494 1957 635 986 2579 343 2413 575 213 954 1754 1153 2130 Wait 1640 | . 136 79 12 8 206 . 226 17 15 136 449 232 124 Move 13605 | 53 294 1741 524 959 2150 331 2060 541 195 807 1232 891 1827 Hop 78 | . . . . . 37 . 30 2 . . . . 9 Pick Up 79 | 6 2 9 12 14 8 3 8 1 . 3 2 4 7 Fast Attach 63 | 6 1 12 1 1 11 . 3 1 1 2 8 1 15 Attach 51 | . 3 8 . 1 22 . 3 4 . . 2 3 5 Detach 18 | . . 4 . . 5 . 2 2 1 . 1 1 2 Swap 70 | . 5 4 . . 9 4 8 . . 2 13 5 20 Drop 96 | . 4 20 2 3 19 5 6 1 . 3 13 4 16 Fire 154 | 15 49 68 21 . . . . . . . 1 . . Melee 279 | . . 4 . . 59 . 67 6 1 1 29 12 100 Ram . | . . . . . . . . . . . . . . Kick . | . . . . . . . . . . . . . . Crush . | . . . . . . . . . . . . . . Escape Stasis . | . . . . . . . . . . . . . . Rewire 70 | . . . 61 . . . . . . . 4 . 5 Trap 52 | . . . . . 52 . . . . . . . . Miscellaneous 11 | . . 8 2 . 1 . . . . . . . . Route ------- -11/Scrapyard -10/Materials (discovered 5 exits: *Mat x3 / [*Min] / *Sub) -10/Subcaves (discovered 3 exits: *Mat x2 / *Rec) -8/Recycling (discovered 2 exits: *Fac / *Scr) -8/Scraptown (discovered 2 exits: *Fac x2) -6/Factory (discovered 5 exits: *Fac x3 / *Low x2) -6/Waste -6/Factory (discovered 4 exits: *Fac x3 / *Low) -6/Lower Caves -6/Lower Caves -6/Zion (discovered 2 exits: *Dee / [*Pro]) -6/Deep Caves -5/Proximity Caves -5/Factory (discovered 5 exits: Fac x2 / *Upp x2 / Ext) History --------- Turn | Location | Event 3 | -11/Scrapyard | Discovered new exit (range 16) 97 | -11/Scrapyard | Entered Materials 165 | -10/Materials | Discovered new exit (range 8) 233 | -10/Materials | Discovered new exit (range 14) 302 | -10/Materials | Build established: Mutant 366 | -10/Materials | Lost 3 parts (1u2w) 494 | -10/Materials | Discovered new exit (range 16) 540 | -10/Materials | Learned Storage emergency access door positions 552 | -10/Materials | Discovered new exit (range 7) 589 | -10/Materials | Learned 4 Subcaves zone layouts 598 | -10/Materials | Identified exit to Materials 599 | -10/Materials | Learned 2 Storage zone layouts 600 | -10/Materials | Learned 4 Recycling zone layouts 601 | -10/Materials | Learned Storage stockpile data 602 | -10/Materials | Learned location of Mines (-9) 619 | -10/Materials | Learned Storage trap positions 650 | -10/Materials | Entered Subcaves 651 | -10/Subcaves | Identified exit to Materials 688 | -10/Subcaves | Learned location of Storage (-8) 734 | -10/Subcaves | Visited 4L-MR0's lab 750 | -10/Subcaves | Found Powered Cannon 834 | -10/Subcaves | Attached Powered Cannon, gained temporary slot: Power 1201 | -10/Subcaves | Shifting Twisted Machinery released Sub. Power Source 1211 | -10/Subcaves | Shifting Twisted Machinery released Spk. Treads 1277 | -10/Subcaves | Shifting Twisted Machinery released Sub. Machine Gun 1293 | -10/Subcaves | Shifting Twisted Machinery released Sub. Beam Cannon 1319 | -10/Subcaves | Disturbed a concealed Subdweller 1336 | -10/Subcaves | Core integrity fell below 50% 1457 | -10/Subcaves | Ambushed by Subdweller buried in earth 1592 | -10/Subcaves | Visited triangular shrine 1599 | -10/Subcaves | Found Prototype Device 1599 | -10/Subcaves | Identified V3-11A's Pendant 1604 | -10/Subcaves | Befriended Subdweller 1642 | -10/Subcaves | Learned location of Zion (-6) 1642 | -10/Subcaves | Met a Zionite searching for "candidates" 1682 | -10/Subcaves | Visited Clippyterm 1685 | -10/Subcaves | Learned location of Deep Caves (-6) 1724 | -10/Subcaves | Befriended Subdweller 1724 | -10/Subcaves | Befriended Subdweller 1736 | -10/Subcaves | Learned Materials stockpile data 2104 | -10/Subcaves | Discovered exit to Materials (range 14) 2144 | -10/Subcaves | Discovered new exit (range 10) 2228 | -10/Subcaves | Shifting Twisted Machinery released Riot Gun 2230 | -10/Subcaves | Shifting Twisted Machinery released Mak. Light Armor Plating 2284 | -10/Subcaves | Befriended Subdweller 2289 | -10/Subcaves | Befriended Subdweller 2598 | -10/Subcaves | Build established: Scavenger-Mutant 2627 | -10/Subcaves | Entered Recycling 2627 | -8/Recycling | Accompanied by 4 allies 2628 | -8/Recycling | Identified exit to Scraptown 2787 | -8/Recycling | Lost 3 allies 2927 | -8/Recycling | Build established: Subdweller-Mutant 3007 | -8/Recycling | Learned Storage stockpile data 3050 | -8/Recycling | Learned location of 1 exit from Lower Caves 3103 | -8/Recycling | Identified exit to Factory 3116 | -8/Recycling | Learned location of 1 exit from Extension 3117 | -8/Recycling | Learned Storage terminal intel 3139 | -8/Recycling | Learned Storage stockpile data 3166 | -8/Recycling | Learned Storage emergency access door positions 3309 | -8/Recycling | Build established: Mutant 3545 | -8/Recycling | Scanned before Scraplab entrance 3576 | -8/Recycling | Entered Scraplab 3601 | -8/Recycling | Entered Scraptown 3601 | -8/Scraptown | Accompanied by 7 allies 3602 | -8/Scraptown | System corruption cleaned by C-Scrubber 3622 | -8/Scraptown | Build established: Commander-Mutant 3862 | -8/Scraptown | Delivered V3-11A's Pendant to T0-NE2 in exchange for information 4109 | -8/Scraptown | Scanned Subdweller tech in exchange for log data 4111 | -8/Scraptown | Learned location of Warlord (-4) 4113 | -8/Scraptown | Learned 12 Research zone layouts 4153 | -8/Scraptown | Visited Symbiants 4178 | -8/Scraptown | Visited Fellowship of the Rings 4197 | -8/Scraptown | Heard Great Nut preacher, LISTEN AND RECITE! 4204 | -8/Scraptown | Visited UFD Registry 4204 | -8/Scraptown | Registered with UFD as "Roughcoil" 4450 | -8/Scraptown | Visited Comm Corps 4469 | -8/Scraptown | Visited Red Mages 4488 | -8/Scraptown | Visited Cyclists 4501 | -8/Scraptown | Entered Cyclist Reading Room 4560 | -8/Scraptown | Visited Scrapoid Research Area 4630 | -8/Scraptown | Visited Awakened 4723 | -8/Scraptown | Visited Scrapoid Pod Storage 4780 | -8/Scraptown | Visited Infowarlord's Domain 4792 | -8/Scraptown | Found Exp. Signal Interpreter 4827 | -8/Scraptown | Visited Science Guys 4878 | -8/Scraptown | Delivered Scrap Shield to a Scientist 4962 | -8/Scraptown | Visited A0-MCA Data Center 4974 | -8/Scraptown | Given a D+ rating by A0-MCA 4978 | -8/Scraptown | Found A0-MCA's Component Scanner 5011 | -8/Scraptown | Visited Supply Room 5039 | -8/Scraptown | Visited DA-N13 Charitable Foundation 5061 | -8/Scraptown | Found DCF Scrap (28 items) 5090 | -8/Scraptown | Visited Sword Containment 5110 | -8/Scraptown | Found Prototype Slashing Weapon 5110 | -8/Scraptown | Identified Companion Sword 5151 | -8/Scraptown | Visited Observation Area 5204 | -8/Scraptown | Visited LU-1G1's Boring Crew 5319 | -8/Scraptown | Met Optimus 5319 | -8/Scraptown | Accepted into 0bPrime 5423 | -8/Scraptown | Entered Factory 5423 | -6/Factory | Accompanied by 5 allies 5423 | -6/Factory | Evolved 8 slots: Propulsion x4, Utility x4 5424 | -6/Factory | Identified exit to Factory 5710 | -6/Factory | Repaired Surge Thruster+ 5750 | -6/Factory | Repaired Surge Thruster+ 5750 | -6/Factory | Build established: Hacker-Sprinter 5757 | -6/Factory | Loaded intel: 8 recycling unit locations 5771 | -6/Factory | Learned location of Protoforge (-2) 5780 | -6/Factory | Garrison activated, responded to threat 5802 | -6/Factory | Spotted B-75 Beast 5889 | -6/Factory | Destroyed 7 combat bots 5904 | -6/Factory | Lost 4 parts (4n) 5940 | -6/Factory | Discovered new exit (range 18) 5955 | -6/Factory | Discovered exit to Factory (range 11) 5970 | -6/Factory | Learned Extension trap positions 6028 | -6/Factory | Loaded intel: 75 trap records 6077 | -6/Factory | Learned 2 Upper Caves zone layouts 6114 | -6/Factory | Learned location of 1 exit from Cetus 6140 | -6/Factory | Learned 4 Extension zone layouts 6176 | -6/Factory | Discovered new exit (range 4) 6177 | -6/Factory | Identified exit to Lower Caves 6183 | -6/Factory | Build established: Scavenger-Sprinter 6260 | -6/Factory | Repaired VTOL Module+ 6270 | -6/Factory | Learned location of Cetus (-5) 6300 | -6/Factory | Repaired Imp. Propulsion Shielding 6361 | -6/Factory | Manually triggered Chute Trap 6361 | -6/Factory | Sucked down chute 6361 | -6/Factory | Entered Waste 6361 | -6/Waste | The area was eerily silent 6362 | -6/Waste | Identified exit to Factory 6438 | -6/Waste | Entered Factory 6818 | -6/Factory | Repaired Exp. Propulsion Shielding 6899 | -6/Factory | Discovered exit to Factory (range 14) 6996 | -6/Factory | Repaired Broken Nuclear Pulse Thruster+ 7030 | -6/Factory | Repaired VTOL Module+? 7085 | -6/Factory | Discovered exit to Lower Caves (range 6) 7205 | -6/Factory | Learned Hub_04(d) terminal intel 7275 | -6/Factory | Loaded intel: 8 recycling unit locations 7308 | -6/Factory | Learned location of 1 exit from Hub_04(d) 7322 | -6/Factory | Learned location of Proximity Caves (-6) 7327 | -6/Factory | Learned location of 1 exit from Upper Caves 7328 | -6/Factory | Learned 4 Proximity Caves zone layouts 7329 | -6/Factory | Learned location of 1 exit from Upper Caves 7334 | -6/Factory | Core integrity fell below 50% 7340 | -6/Factory | Learned location of 2 exits from Archives 7368 | -6/Factory | Entered Lower Caves 7369 | -6/Lower Caves | Identified exit to Lower Caves 7370 | -6/Lower Caves | UFD Scientist delivered a prototype 7378 | -6/Lower Caves | Found Prototype Protection 7378 | -6/Lower Caves | Identified Enh. Scrap Shield 7442 | -6/Lower Caves | Encountered a Warlord checkpoint 7534 | -6/Lower Caves | Entered another Lower Caves area 7538 | -6/Lower Caves | Encountered a Warlord checkpoint 7565 | -6/Lower Caves | Found DCF Scrap (15 items) 7597 | -6/Lower Caves | Discovered new exit (range 8) 7599 | -6/Lower Caves | Identified exit to Zion 7599 | -6/Lower Caves | Entered Zion 7606 | -6/Zion | System corruption cleaned by Quarantine Array 7614 | -6/Zion | Found CR-A16's Pointy Stick 7618 | -6/Zion | Acquired unknown access codes intercepted by a Zionite 7622 | -6/Zion | Gained Derelict followers 7627 | -6/Zion | Discovered new exit (range 10) 7679 | -6/Zion | Given A8's code to call for help 7688 | -6/Zion | Identified exit to Deep Caves 7705 | -6/Zion | Found GAL Module 7728 | -6/Zion | Given the Hacking Drone Bay 7728 | -6/Zion | Found Prototype Device 7729 | -6/Zion | Identified Hacking Drone Bay 7735 | -6/Zion | Gained Derelict followers 7791 | -6/Zion | Turned away by Imprinter 7813 | -6/Zion | Opened final containment barrier to the Deep Caves 7816 | -6/Zion | Enhanced Grunt warped into view, answering call for help 7830 | -6/Zion | Enhanced Grunt warped into view, answering call for help 7832 | -6/Zion | Saw the warning signs outside the Deep Caves entrance 7934 | -6/Zion | Entered Deep Caves 7934 | -6/Deep Caves | Accompanied by 12 allies 7964 | -6/Deep Caves | Attached CPS modules to HX-6KP(p). 7983 | -6/Deep Caves | Attacked by Z-Imprinter 7996 | -6/Deep Caves | Allies destroyed Z-Imprinter 8017 | -6/Deep Caves | Found Prototype Protection 8017 | -6/Deep Caves | Identified Zio. Weapon Casing 8028 | -6/Deep Caves | Lost 7 allies 8147 | -6/Deep Caves | Z-Facility disabled 8325 | -6/Deep Caves | Discovered new exit (range 7) 8326 | -6/Deep Caves | Identified exit to Proximity Caves 8570 | -6/Deep Caves | Found Prototype Protection 8570 | -6/Deep Caves | Identified Zio. Heavy Carapace 8789 | -6/Deep Caves | Entered Proximity Caves 8789 | -5/Proximity Caves | Accompanied by 5 allies 8791 | -5/Proximity Caves | Spotter reported a threat 8799 | -5/Proximity Caves | Found Alien Artifact 8819 | -5/Proximity Caves | Spotted B-75 Beast 8832 | -5/Proximity Caves | Revealed the true nature of CR-A16's Pointy Stick 8835 | -5/Proximity Caves | Destroyed B-75 Beast 8864 | -5/Proximity Caves | Lost 3 parts (1n2u) 9062 | -5/Proximity Caves | Learned location of 1 exit from Factory 9066 | -5/Proximity Caves | Learned 8 Factory zone layouts 9070 | -5/Proximity Caves | Discovered exit to Factory (range 10) 9266 | -5/Proximity Caves | Entered Factory 9266 | -5/Factory | Accompanied by 3 allies 9266 | -5/Factory | Evolved 2 slots: Utility x2 9267 | -5/Factory | Identified exit to Upper Caves 9267 | -5/Factory | Identified exit to Extension 9268 | -5/Factory | Identified exit to Factory 9375 | -5/Factory | Identified Dimensional Node Initializer 9598 | -5/Factory | Lost 6 parts (1p4n1u) 9639 | -5/Factory | Loaded intel: 8 recycling unit locations 9648 | -5/Factory | Found Prototype Device 9648 | -5/Factory | Identified Exp. Thermal Shield 9950 | -5/Factory | Scraphulk reinforcements arrived? 10076 | -5/Factory | Spotted B-75 Beast 10082 | -5/Factory | Core integrity fell below 50% 10084 | -5/Factory | Destroyed B-75 Beast 10166 | -5/Factory | First assault squad dispatched 10209 | -5/Factory | Core integrity fell below 20% 10226 | -5/Factory | Destroyed by S-27 Virus with Autogun Last Messages --------------- 10193_ Lgt. Nuclear Core destroyed. 10194_ Destroyed Imp. Heat Sink. 10194_ Nuclear Pulse Thruster+ destroyed. 10194_ Authchip [Processor] destroyed. 10196_ Dropped Med. Storage Unit. 10197_ Cld. Nuclear Pulse Thruster destroyed. 10202_ Destroyed Hpw. Shock Rifle. 10205_ P-70 Sage destroyed. 10205_ Slug penetrates Fusion Modulator. 10205_ Slug penetrates Wall. 10207_ K-01 Serf collects debris. 10208_ Slug penetrates Wall. 10210_ Penetrated by Slug. 10211_ System corrupted: Matter fused (-5). 10211_ K-01 Serf collects debris. 10212_ Slug penetrates Wall. 10214_ K-01 Serf collects debris. 10215_ Wall collapses. 10218_ Slug penetrates Terminal. 10222_ Slug penetrates Fusion Modulator. Map ----- +----------------------------------------------------+ | | | | | | | | | | | | | | | ?????????????????????????????????????????????????? | | ?????????????????????????????????????????????????? | | ?????????????????????????????????????????????????? | | ?????????????????????????????????????????????????? | | ?????????????????????????????????????????????????? | | ?????????????????????????????????????????????????? | | ?????????????????????????????????????????????????? | | ?????????????????????????????????????????????????? | | ?????????????????????????????????????????????????? | | ?????????????????????????????????????????????????? | | ?????????????????????????????????????????????????? | | ?????????????????????????????????????????????????? | | ?????????????????????????????????????????????????? | | ?????????????????????????????????????????????????? | | ?????????????????????????????????????????????????? | | ?????????????????????????????????????????????????? | | ###?######?????###########################???????? | | ? #?????# s + #???????? | | " """ #?????# " " " "@" # """ """ #???????? | | " """ #??????? " " " " " # """ """ #???????? | | " """ #????????" " " " " # """ """ #???????? | | #????????" " " " " # #???????? | | " """ #????????" " " " " # """ #???????? | | " """ #????????? " " " " # """ #???????? | | " """ #????????? " " " " # """ #???????? | | #????????? " " " " #""" #???????? | | #????????????" " " #"T #???????? | | = #?????????????? #""" #???????? | | #?????????????? # =%= #???????? | | ######+###????????####+############/"############# | | ?????#%#??????????#^ ^ %[%! | | ?????#=#??????????# ^ &!! | | ????# #??????????# """ """ """ """!! | | "??###+######?????# """ """ """ """ | | ""?# #?????# """ """ """^""" | | ""?# """ #?????# ############ | | "" # """ #?????# """ """ """ """ #??????????? | | ???# """ #?????# """ """ """ """ #??????????? | | ???# #?????+ """ """ """ """% #??????????? | | ???# """ ""#?????# #??????????? | | ???# """ T"#?????# #??????????? | | ???# """ ""#?????# #??????????? | | ???# #?????# ########??????????? | +----------------------------------------------------+ Best States ------------- Heat Dissipation 66 Energy Generation 35 Energy Capacity 300 Matter Stores 300 Matter Capacity 300 Sight Range 22 Robot Scan Range 16 Terrain Scan Range 14 Terrain Scan Density 10 ECM Strength 1 Jamming Range 14 Additional Mass Support 12 Armor Coverage 800 Resistance: TH 30 Propulsion Shielding 90 Evasion (%) 75 Targeting Accuracy 8 Melee Accuracy 16 Recoil Reduction 1 Offensive Hacking 12 Defensive Hacking 10 Authchip Count 1 Trap Extractor Capacity 8 Item Schematics ----------------- Surge Thruster | -8/Recycling | Hacked Trap Extractor | -8/Recycling | Hacked Adv. Melee Analysis Suite | -6/Factory | Hacked CPS Tube | -6/Factory | Scanalyzed Exp. Signal Interpreter | -6/Factory | Scanalyzed Nuclear Pulse Thruster | -6/Factory | Scanalyzed Imp. Fusion Compressor | -6/Factory | Scanalyzed Imp. Cryofiber Web | -6/Factory | Downloaded Battle Cannon | -6/Zion | Free Flamer | -6/Zion | Free Beamcaster | -6/Zion | Free Barrage Gun | -6/Zion | Free Arc Thrower | -6/Zion | Free Hvy. Mass Driver | -6/Zion | Archive Wave Gun | -6/Zion | Archive Imp. Core Shielding | -6/Zion | Archive Adv. Sensor Array | -6/Zion | Archive Imp. Dynamic Insulation System | -6/Zion | Archive Remote Force Field | -6/Zion | Archive Thermal Shield | -6/Zion | Archive Adv. Transmission Jammer | -6/Zion | Archive Force Field | -6/Zion | Archive Adv. Cooling System | -6/Zion | Archive Mass Driver | -6/Zion | Archive Power Amplifier | -6/Zion | Archive Adv. Cryofiber Web | -6/Zion | Archive Energy Well | -6/Zion | Archive Arm. Medium Treads | -6/Zion | Archive Imp. Propulsion Shielding | -5/Factory | Scanalyzed Multitool | -5/Factory | Scanalyzed Stasis Canceller | -5/Factory | Scanalyzed Robot Schematics ------------------ A-15 Conveyor | -6/Zion | Archive T-07 Excavator | -6/Zion | Archive L-41 Fighter | -6/Zion | Archive Fabricated ------------ Nothing Repaired ---------- Surge Thruster | 11% | -6/Factory Surge Thruster | 38% | -6/Factory VTOL Module | 60% | -6/Factory Imp. Propulsion Shielding | 72% | -6/Factory Exp. Propulsion Shielding | 6% | -6/Factory Nuclear Pulse Thruster | 36% | -6/Factory | Broken VTOL Module | 32% | -6/Factory Studied --------- Surge Thruster | -6/Factory | Hacked Cesium-ion Thruster | -6/Factory | Hacked VTOL Module | -6/Factory | Hacked Lgt. Fission Core | -6/Factory | Hacked Lgt. Deuterium Engine | -6/Factory | Hacked Mni. Grenade Launcher | -6/Factory | Hacked Nuclear Pulse Thruster | -6/Factory | Hacked Xenon Bombardment Thruster | -5/Factory | Hacked Alien Tech Used ----------------- None Achievements -------------- None Challenges ------------ None Game ------ Seed EtherialPointyCartridge Manual? 0 Play Time 02:36:23 Cumulative 721.0 hours Start 2025.11.28 @ 20:32:41 End 2025.11.28 @ 23:36:12 Sessions 1 Manual Loads 0 Difficulty Rogue Special Mode None Game No. 307 Rogue 307 Adventurer 0 Explorer 0 Win Type - Total 73 Types 38/5/11/5/6/1/1/3/0/3 Lore% 97 Gallery% 90 Achievement% 81 Wizard Run 0 Options --------- Layout 1 ASCII 0 Keyboard 0 Movement Numpad Keybinds 0 Fullscreen 1 Font 24/Smallcaps Map View 50x35 Zoom Use 0% Tactical HUD 1 Map Filters NONE Filters NONE Steam 1 RUN: 3a84991c-f382-4bc7-bb6d-0210d8f97dff